bitfinex/quotes_SOLUSD_20250809
["timestamp","ask_amount","ask_price","bid_price","bid_amount"]
[1754733355100,0.03,182.18,182.17,4.87764189]
[1754733355295,0.03,182.18,182.17,5.54764189]
[1754733356493,0.03,182.18,182.17,11.03701994]
[1754733359623,0.03,182.18,182.17,13.23427894]
[1754733360999,0.03,182.19,182.17,13.78321674]
[1754733361208,0.03,182.19,182.18,5.54764189]
[1754733361707,0.03,182.19,182.18,7.74453889]
[1754733362805,0.03,182.19,182.18,13.23361562]
[1754733364729,0.03,182.19,182.18,55.97361562]
[1754733371307,0.03,182.2,182.18,55.97361562]
[1754733371516,0.03,182.2,182.19,11.03641734]
[1754733372003,0.03,182.2,182.19,13.23307234]
[1754733376628,0.03,182.2,182.19,13.23307234]
[1754733378241,0.03,182.21,182.19,13.23307234]
[1754733378440,0.03,182.21,182.2,48.16764189]
[1754733378825,0.03,182.21,182.2,45.486656]
[1754733379044,0.69,182.21,182.2,49.69429789]
[1754733379228,0.69,182.21,182.2,75.69429789]
[1754733379729,0.69,182.21,182.2,70.816656]
[1754733379925,0.03,182.21,182.2,81.18277209]
[1754733380233,0.03,182.21,182.2,81.85277209]
[1754733381021,0.03,182.21,182.2,55.85277209]
[1754733382714,0.03,182.23,182.22,26.0]
[1754733382934,0.03,182.23,182.22,43.12878718]
[1754733383335,0.03,182.23,182.22,48.67642907]
[1754733383856,0.03,182.23,182.22,53.49430087]
[1754733384157,0.69,182.23,182.22,52.94551369]
[1754733384462,0.69,182.23,182.22,55.14192769]
[1754733384628,0.69,182.23,182.22,49.65405589]
[1754733384822,0.69,182.23,182.22,44.776414]
[1754733385023,0.69,182.23,182.22,49.65405589]
[1754733385239,0.69,182.23,182.22,7.07405589]
[1754733386220,0.69,182.23,182.22,2.196414]
[1754733386630,0.69,182.23,182.22,7.07405589]
[1754733387523,0.69,182.23,182.18,88.7]
[1754733387524,6.17768882,182.23,182.18,88.7]
[1754733387724,0.66,182.22,182.21,5.51701]
[1754733388025,0.66,182.22,182.17,0.06]
[1754733388026,5.48817298,182.21,182.17,4.93764189]
[1754733388352,0.66,182.2,182.18,4.87764189]
[1754733388823,0.66,182.2,182.19,4.87764189]
[1754733389022,0.66,182.2,182.18,4.87764189]
[1754733389726,0.66,182.2,182.19,0.06]
[1754733390242,0.66,182.2,182.19,4.93764189]
[1754733390842,0.66,182.2,182.19,0.06]
[1754733391051,0.66,182.2,182.19,4.93764189]
[1754733391249,0.66,182.2,182.19,0.06]
[1754733392842,6.1484742,182.2,182.19,0.06]
[1754733393246,5.4884742,182.2,182.19,0.06]
[1754733393433,6.1484742,182.2,182.19,0.06]
[1754733394355,0.66,182.2,182.19,4.93764189]
[1754733394535,0.66,182.2,182.19,0.06]
[1754733394737,0.66,182.2,182.19,4.93764189]
[1754733395663,0.66,182.2,182.19,0.06]
[1754733395837,0.66,182.2,182.19,8.82385215]
[1754733396557,0.66,182.2,182.19,3.94621026]
[1754733396753,0.66,182.2,182.19,8.82385215]
[1754733399156,0.66,182.2,182.19,3.94621026]
[1754733399384,6.1484742,182.2,182.19,3.94621026]
[1754733399677,11.02611609,182.2,182.19,3.94621026]
[1754733399847,6.1484742,182.2,182.19,3.94621026]
[1754733400348,6.1484742,182.2,182.19,3.95096966]
[1754733403079,0.66,182.22,182.19,8.82861155]
[1754733403286,0.66,182.22,182.2,8.76861155]
[1754733403487,0.66,182.22,182.21,3.89096966]
[1754733405384,6.1478718,182.22,182.21,3.89096966]
[1754733406090,5.4878718,182.22,182.21,3.89096966]
[1754733406268,5.51763473,182.23,182.21,3.88778558]
[1754733406471,5.51763473,182.23,182.22,3.88778558]
[1754733406675,0.03,182.23,182.22,3.88778558]
[1754733406876,0.69,182.23,182.22,3.88778558]
[1754733409174,0.69,182.23,182.22,3.88639144]
[1754733409710,6.17757065,182.23,182.22,3.88639144]
[1754733411594,11.05521254,182.23,182.22,3.88639144]
[1754733411771,6.17757065,182.23,182.22,3.88639144]
[1754733411970,11.05521254,182.23,182.22,3.88639144]
[1754733412172,6.17757065,182.23,182.22,3.88639144]
[1754733412783,11.05521254,182.23,182.22,3.88639144]
[1754733413090,6.17757065,182.23,182.22,3.88639144]
[1754733414200,5.51757065,182.23,182.22,3.88639144]
[1754733415303,0.03,182.23,182.22,9.43403333]
[1754733415809,0.03,182.23,182.22,3.88639144]
[1754733416381,0.69,182.23,182.22,3.88639144]
[1754733416806,6.17757065,182.23,182.22,3.88639144]
[1754733417480,0.03,182.23,182.22,3.88639144]
[1754733417688,0.03,182.23,182.22,8.76403333]
[1754733417902,5.51757065,182.23,182.22,4.08816377]
[1754733418099,6.17757065,182.23,182.22,4.08816377]
[1754733418508,6.17757065,182.23,182.2,26.0]
[1754733418805,6.17757065,182.23,182.21,4.87764189]
[1754733419603,6.17757065,182.23,182.2,26.0]
[1754733419910,6.17757065,182.23,182.2,4.87764189]
[1754733420205,0.66,182.22,182.19,0.06]
[1754733420407,5.53764189,182.22,182.2,4.09003991]
[1754733420586,4.87764189,182.22,182.21,4.09003991]
[1754733420983,4.87764189,182.22,182.19,0.06]
[1754733421189,0.66,182.21,182.2,4.0916336]
[1754733421419,11.02581487,182.21,182.2,4.0916336]
[1754733421901,6.14817298,182.21,182.2,4.0916336]
[1754733422113,11.02581487,182.21,182.2,4.0916336]
[1754733422911,11.02581487,182.21,182.19,0.06]
[1754733423109,0.66,182.2,182.19,0.06]
[1754733423294,5.53764189,182.2,182.19,0.06]
[1754733423792,6.1684742,182.2,182.19,0.06]
[1754733423995,11.04611609,182.2,182.19,0.06]
[1754733426116,6.1684742,182.2,182.19,0.06]
[1754733426314,11.04611609,182.2,182.19,0.06]
[1754733427512,6.1684742,182.2,182.19,0.06]
[1754733427699,11.04611609,182.2,182.19,0.06]
[1754733427903,11.04611609,182.2,182.19,1e-08]
[1754733430995,53.30611609,182.2,182.19,1e-08]
[1754733432107,26.0,182.18,182.17,1e-08]
[1754733432610,31.55764189,182.18,182.17,1e-08]
[1754733433914,26.68,182.18,182.17,1e-08]
[1754733434112,32.16907673,182.18,182.17,1e-08]
[1754733434311,37.04671862,182.18,182.17,1e-08]
[1754733436215,32.16907673,182.18,182.17,1e-08]
[1754733436412,47.70907673,182.18,182.17,1e-08]
[1754733437612,47.70907673,182.18,182.17,4.05967698]
[1754733438409,5.48907673,182.18,182.17,4.05984941]
[1754733438607,47.70907673,182.18,182.17,4.05984941]
[1754733439410,42.22,182.18,182.17,4.05984941]
[1754733439606,47.70907673,182.18,182.17,4.05984941]
[1754733439809,42.22,182.18,182.17,4.05984941]
[1754733440213,47.70907673,182.18,182.17,4.05984941]
[1754733442029,47.70907673,182.18,182.17,4.73984941]
[1754733442232,47.70907673,182.18,182.17,4.05984941]
[1754733443536,47.70907673,182.18,182.17,4.73984941]
[1754733444040,5.48880834,182.19,182.17,9.6174913]
[1754733444242,5.48880834,182.19,182.18,9.61749129]
[1754733445644,19.23805713,182.22,182.18,9.61749129]
[1754733445848,19.23805713,182.22,182.19,9.61749129]
[1754733445849,42.18,182.21,182.19,9.61749129]
[1754733446036,42.18,182.21,182.2,9.61749129]
[1754733446339,42.18,182.21,182.2,9.61598222]
[1754733446541,5.5178718,182.22,182.2,9.61598222]
[1754733446748,5.5178718,182.22,182.21,9.61598222]
[1754733447256,0.03,182.22,182.21,9.61598222]
[1754733447751,0.03,182.22,182.21,4.73834033]
[1754733447928,0.03,182.22,182.21,9.61598222]
[1754733451947,0.03,182.22,182.21,8.93598222]
[1754733452962,0.03,182.22,182.21,9.61598222]
[1754733456247,0.03,182.22,182.21,4.73834033]
[1754733456458,0.03,182.22,182.21,8.93598222]
[1754733459675,0.03,182.22,182.21,4.05834033]
[1754733460171,0.03,182.22,182.21,8.93598222]
[1754733461461,0.03,182.22,182.21,9.65598222]
[1754733462549,0.03,182.22,182.21,8.93598222]
[1754733463155,0.03,182.22,182.21,9.65598222]
[1754733465980,0.03,182.22,182.21,8.93598222]
[1754733466474,0.03,182.22,182.21,9.65598222]
[1754733466867,0.03,182.22,182.21,5.59764189]
[1754733467072,0.03,182.22,182.21,9.65893401]
[1754733467267,0.03,182.22,182.21,8.93893401]
[1754733467463,0.71,182.22,182.21,8.93893401]
[1754733467875,6.1978718,182.22,182.21,8.93893401]
[1754733468467,0.03,182.22,182.21,8.93893401]
[1754733468851,0.03,182.22,182.21,9.65893401]
[1754733469675,0.03,182.22,182.21,15.14710699]
[1754733469979,0.03,182.22,182.21,9.65893401]
[1754733472264,0.03,182.22,182.21,57.14710699]
[1754733472859,0.03,182.22,182.21,57.14237674]
[1754733475675,0.03,182.22,182.21,57.14089054]
[1754733478602,0.03,182.22,182.21,57.14275518]
[1754733480979,0.03,182.22,182.21,50.9345822]
[1754733481177,0.03,182.22,182.21,50.8745822]
[1754733481490,0.03,182.22,182.21,56.36275518]
[1754733481693,0.03,182.22,182.21,51.48511329]
[1754733482073,0.03,182.22,182.21,57.08275518]
[1754733483592,0.03,182.22,182.21,56.36275518]
[1754733484269,0.03,182.22,182.21,50.8745822]
[1754733484826,0.03,182.22,182.21,45.99694031]
[1754733484974,0.03,182.22,182.21,50.8745822]
[1754733486083,0.7,182.22,182.21,76.8745822]
[1754733486489,0.7,182.22,182.21,71.99694031]
[1754733486692,0.7,182.22,182.21,76.8745822]
[1754733487477,0.7,182.22,182.21,4.05694031]
[1754733490196,0.7,182.22,182.21,8.9345822]
[1754733491908,0.7,182.22,182.21,4.05694031]
[1754733492126,0.7,182.22,182.21,8.9345822]
[1754733492693,0.7,182.22,182.21,4.05694031]
[1754733494016,6.1878718,182.22,182.21,4.05694031]
[1754733494398,0.7,182.22,182.21,4.05694031]
[1754733495712,0.7,182.22,182.21,8.9345822]
[1754733495713,0.03,182.22,182.21,8.9345822]
[1754733496930,0.7,182.22,182.21,4.05694031]
[1754733498635,0.03,182.22,182.21,8.9345822]
[1754733500323,0.7,182.22,182.21,4.05694031]
[1754733500900,6.1878718,182.22,182.21,4.05694031]
[1754733501505,11.06551369,182.22,182.21,4.05694031]
[1754733502019,6.1878718,182.22,182.21,4.05694031]
[1754733504326,11.06551369,182.22,182.21,4.05694031]
[1754733505821,6.1878718,182.22,182.21,4.05694031]
[1754733506026,11.06551369,182.22,182.21,4.05694031]
[1754733512807,11.06551369,182.22,182.21,4.08990034]
[1754733514616,0.03,182.22,182.21,4.08990034]
[1754733514814,0.03,182.22,182.21,4.74990034]
[1754733515019,0.03,182.22,182.21,4.08990034]
[1754733515415,0.03,182.22,182.21,9.62754223]
[1754733517226,0.03,182.22,182.21,9.62600628]
[1754733517817,0.03,182.22,182.21,4.74836439]
[1754733518141,0.03,182.22,182.21,9.62600628]
[1754733518937,0.03,182.22,182.21,9.62763781]
[1754733519718,0.03,182.22,182.21,8.96763781]
[1754733520335,0.03,182.22,182.21,4.08999592]
[1754733520538,0.03,182.22,182.21,8.96763781]
[1754733523352,5.55335438,182.24,182.21,8.96763781]
[1754733523647,0.7,182.24,182.22,4.08999592]
[1754733523823,0.7,182.24,182.21,4.87764189]
[1754733523824,0.7,182.24,182.23,4.08999592]
[1754733524224,5.51696844,182.25,182.23,4.08999592]
[1754733524421,5.51696844,182.25,182.21,4.87764189]
[1754733524422,5.51696844,182.25,182.24,4.08999592]
[1754733524627,6.21696844,182.25,182.24,4.08999592]
[1754733524828,11.09461033,182.25,182.24,4.08999592]
[1754733526238,5.51696844,182.25,182.24,4.08999592]
[1754733527033,6.21696844,182.25,182.24,4.08999592]
[1754733527238,11.09461033,182.25,182.24,4.08999592]
[1754733527657,11.09461033,182.25,182.24,4.09556694]
[1754733528546,6.21696844,182.25,182.24,4.09556694]
[1754733528749,0.03,182.25,182.24,9.63320883]
[1754733529142,0.03,182.25,182.24,9.63345438]
[1754733529454,0.03,182.25,182.24,4.75581249]
[1754733529657,0.03,182.25,182.24,9.63345438]
[1754733530438,0.03,182.25,182.24,4.09581249]
[1754733530656,0.03,182.25,182.24,8.97345438]
[1754733531057,0.03,182.25,182.24,4.09581249]
[1754733533558,0.03,182.25,182.24,4.09648133]
[1754733534153,5.51696844,182.25,182.24,4.09648133]
[1754733534346,6.21696844,182.25,182.24,4.09648133]
[1754733535155,11.09461033,182.25,182.24,4.09648133]
[1754733536937,6.21696844,182.25,182.24,4.09648133]
[1754733537592,11.09461033,182.25,182.24,4.09648133]
[1754733537775,11.09461033,182.25,182.24,4.09781809]
[1754733538885,24.81203145,182.25,182.24,4.09781809]
[1754733540592,19.93438956,182.25,182.24,4.09781809]
[1754733541108,19.23438956,182.25,182.24,4.09781809]
[1754733541289,19.93438956,182.25,182.24,4.09781809]
[1754733542177,24.81203145,182.25,182.24,4.09781809]
[1754733542580,24.11203145,182.25,182.24,4.09781809]
[1754733543077,19.23438956,182.25,182.24,4.09781809]
[1754733543288,19.93438956,182.25,182.24,4.09781809]
[1754733543682,61.43438956,182.25,182.24,4.09781809]
[1754733544590,0.03,182.25,182.24,9.69545998]
[1754733544888,0.03,182.26,182.24,15.18272951]
[1754733545090,0.03,182.28,182.25,9.69545998]
[1754733545273,0.03,182.28,182.27,4.87764189]
[1754733545480,0.03,182.28,182.27,8.97545998]
[1754733545684,5.51606539,182.28,182.27,4.09781809]
[1754733547477,5.51606539,182.28,182.27,9.69545998]
[1754733547478,0.03,182.28,182.27,9.69545998]
[1754733547797,0.03,182.28,182.27,4.81781809]
[1754733548091,0.03,182.28,182.27,9.69545998]
[1754733548494,0.03,182.28,182.27,4.09781809]
[1754733550072,0.03,182.28,182.27,4.0893484]
[1754733550395,0.03,182.28,182.27,9.68699029]
[1754733553000,0.03,182.28,182.27,9.68660589]
[1754733554108,0.03,182.28,182.27,8.96660589]
[1754733555794,0.03,182.28,182.27,9.68660589]
[1754733556095,0.03,182.28,182.27,15.17297226]
[1754733556318,0.03,182.28,182.27,4.088964]
[1754733556494,0.03,182.28,182.27,8.96660589]
[1754733556795,0.03,182.28,182.27,9.68660589]
[1754733557877,0.03,182.28,182.27,41.17297226]
[1754733558879,0.03,182.28,182.27,41.17202911]
[1754733559508,0.03,182.28,182.27,43.36796111]
[1754733563085,0.03,182.28,182.27,37.88159474]
[1754733563383,0.03,182.28,182.27,34.96566274]
[1754733564082,0.03,182.28,182.27,35.68566274]
[1754733564395,0.03,182.28,182.27,41.17202911]
[1754733565795,0.03,182.28,182.27,82.53202911]
[1754733566504,0.03,182.28,182.27,79.85031922]
[1754733566682,0.03,182.28,182.27,84.72796111]
[1754733567585,0.03,182.28,182.27,58.72796111]
[1754733573485,0.03,182.28,182.27,58.7218072]
[1754733575902,0.1,182.29,182.27,58.7218072]
[1754733576102,0.1,182.29,182.28,9.61950883]
[1754733576616,0.1,182.29,182.28,11.81402941]
[1754733577115,0.1,182.29,182.28,17.3000948]
[1754733577322,0.1,182.29,182.28,12.42245291]
[1754733577499,0.1,182.29,182.28,17.3000948]
[1754733579618,0.1,182.29,182.28,17.29994509]
[1754733580035,0.1,182.29,182.28,16.63994509]
[1754733580520,0.1,182.29,182.28,17.84855162]
[1754733580705,0.1,182.29,182.28,12.97090973]
[1754733580915,0.1,182.29,182.28,17.84855162]
[1754733581914,0.1,182.29,182.28,16.63994509]
[1754733582320,0.1,182.29,182.28,57.87994509]
[1754733582543,0.1,182.29,182.28,16.63994509]
[1754733582746,0.1,182.29,182.28,57.87994509]
[1754733583113,0.1,182.29,182.28,16.63994509]
[1754733583316,0.1,182.29,182.28,57.85994509]
[1754733583520,0.1,182.29,182.28,17.29994509]
[1754733583735,0.1,182.29,182.28,58.51994509]
[1754733584119,0.1,182.29,182.28,17.29994509]
[1754733584532,0.1,182.29,182.28,57.85994509]
[1754733587846,0.1,182.29,182.28,58.51994509]
[1754733588243,0.1,182.29,182.28,53.6423032]
[1754733588447,0.1,182.29,182.28,58.52736022]
[1754733589447,0.03,182.3,182.28,58.52736022]
[1754733589647,0.03,182.3,182.29,8.96548283]
[1754733591047,0.74,182.31,182.3,4.87764189]
[1754733591228,0.74,182.31,182.3,76.14548283]
[1754733591638,0.74,182.31,182.3,81.17548283]
[1754733591835,0.74,182.31,182.3,76.29784094]
[1754733592240,0.74,182.31,182.3,81.17548283]
[1754733592854,0.03,182.31,182.3,81.17548283]
[1754733593143,0.03,182.31,182.3,76.29784094]
[1754733593354,0.03,182.31,182.3,81.17548283]
[1754733593926,0.03,182.31,182.3,71.26784094]
[1754733594125,0.03,182.31,182.3,76.14548283]
[1754733594327,0.03,182.31,182.3,71.26784094]
[1754733594550,0.03,182.31,182.3,76.14548283]
[1754733594749,0.03,182.31,182.3,71.26784094]
[1754733594957,0.74,182.31,182.3,76.14548283]
[1754733595541,0.03,182.31,182.3,76.14548283]
[1754733596631,0.03,182.31,182.3,74.38704866]
[1754733597135,0.03,182.31,182.3,71.26784094]
[1754733597331,0.03,182.31,182.3,74.38704866]
[1754733598455,0.74,182.31,182.3,74.38704866]
[1754733598752,0.03,182.31,182.3,74.38704866]
[1754733599344,0.03,182.31,182.3,80.53251218]
[1754733599548,0.03,182.31,182.3,74.38704866]
[1754733600835,0.03,182.31,182.3,80.53251218]
[1754733601035,0.03,182.31,182.3,79.87251218]
[1754733601933,0.03,182.31,182.3,80.53251218]
[1754733602133,5.03,182.32,182.31,3.11920772]
[1754733602343,5.03,182.32,182.31,7.86704866]
[1754733602546,0.03,182.33,182.31,7.86704866]
[1754733602752,0.03,182.33,182.32,80.45191044]
[1754733603362,0.03,182.34,182.32,80.45191044]
[1754733603560,0.03,182.34,182.33,7.20704866]
[1754733604750,0.03,182.34,182.33,14.44391351]
[1754733605165,0.03,182.34,182.33,8.95935255]
[1754733605736,0.03,182.34,182.33,11.15456155]
[1754733606035,0.03,182.34,182.33,8.95935255]
[1754733606240,0.73,182.34,182.33,8.95935255]
[1754733606881,0.03,182.34,182.33,9.45935255]
[1754733607170,0.73,182.34,182.33,9.45935255]
[1754733607541,0.73,182.34,182.33,4.58784094]
[1754733607742,0.73,182.34,182.33,8.95935255]
[1754733608081,0.03,182.34,182.33,8.94867591]
[1754733608382,0.03,182.34,182.33,50.65867591]
[1754733610042,0.03,182.34,182.33,50.00867591]
[1754733610440,0.03,182.34,182.33,55.49323687]
[1754733610840,0.03,182.34,182.33,50.62172526]
[1754733611063,0.03,182.34,182.33,55.49323687]
[1754733612856,0.03,182.34,182.33,50.62172526]
[1754733613071,0.73,182.34,182.33,34.94867591]
[1754733615969,0.03,182.35,182.33,86.97474848]
[1754733616217,0.03,182.35,182.34,14.47018752]
[1754733616344,0.03,182.35,182.34,8.94867591]
[1754733617248,0.73,182.35,182.34,14.43293608]
[1754733618668,0.73,182.35,182.34,9.56142447]
[1754733618975,0.73,182.35,182.34,14.43293608]
[1754733620167,0.03,182.35,182.34,14.43293608]
[1754733622369,0.03,182.35,182.34,14.42714888]
[1754733623065,0.03,182.35,182.34,15.07714888]
[1754733623257,0.03,182.35,182.34,19.94866049]
[1754733623457,0.03,182.35,182.34,22.14362849]
[1754733623682,0.03,182.35,182.34,17.27211688]
[1754733624047,0.03,182.35,182.34,55.38714888]
[1754733624778,0.03,182.35,182.34,56.03714888]
[1754733627056,0.03,182.39,182.37,26.0]
[1754733627281,0.03,182.39,182.38,49.88288871]
[1754733627584,0.03,182.39,182.38,50.53288871]
[1754733627789,0.03,182.39,182.38,49.88288871]
[1754733628787,0.03,182.39,182.38,56.01594606]
[1754733629104,0.03,182.39,182.38,55.36594606]
[1754733630287,0.73,182.39,182.38,55.36594606]
[1754733630476,0.73,182.39,182.38,75.88288871]
[1754733630689,0.73,182.39,182.38,49.88288871]
[1754733630886,0.73,182.39,182.38,8.94288871]
[1754733631271,0.73,182.39,182.38,4.0713771]
[1754733631472,0.73,182.39,182.38,8.94288871]
[1754733632491,0.73,182.39,182.38,4.0713771]
[1754733632683,0.73,182.39,182.38,8.94288871]
[1754733634092,0.73,182.39,182.38,8.93832647]
[1754733635279,0.73,182.39,182.38,4.06681486]
[1754733635579,0.73,182.39,182.38,8.93832647]
[1754733637492,0.03,182.39,182.38,8.93832647]
[1754733637785,0.03,182.39,182.38,15.08284167]
[1754733637999,0.03,182.39,182.38,17.27732767]
[1754733638362,0.03,182.4,182.39,26.0]
[1754733638581,0.03,182.4,182.39,81.30254105]
[1754733638780,0.03,182.4,182.39,81.96254105]
[1754733638985,0.03,182.4,182.39,77.09102944]
[1754733639184,0.03,182.4,182.39,81.96254105]
[1754733640710,0.03,182.4,182.39,55.96254105]
[1754733640880,0.03,182.4,182.39,51.09102944]
[1754733641074,0.03,182.4,182.39,61.44294505]
[1754733642710,0.03,182.4,182.39,60.78294505]
[1754733644618,0.69,182.4,182.39,4.06827271]
[1754733645880,0.69,182.4,182.39,4.07505088]
[1754733648902,0.69,182.4,182.39,4.0774111]
[1754733650092,6.17245614,182.4,182.39,4.0774111]
[1754733652995,11.04396775,182.4,182.39,4.0774111]
[1754733656136,6.17245614,182.4,182.39,4.0774111]
[1754733656313,0.69,182.4,182.39,4.0774111]
[1754733656520,0.03,182.4,182.39,4.0774111]
[1754733656921,0.69,182.4,182.39,4.0774111]
[1754733657310,0.69,182.4,182.39,8.94892271]
[1754733657311,0.03,182.4,182.39,8.94892271]
[1754733657549,0.03,182.4,182.39,9.60892271]
[1754733657726,0.03,182.4,182.39,41.09167944]
[1754733657907,0.03,182.4,182.39,36.22016783]
[1754733658419,0.03,182.4,182.39,41.09167944]
[1754733659412,6.14098819,182.45,182.39,41.09167944]
[1754733659612,6.14098819,182.45,182.4,44.8374111]
[1754733659814,6.14098819,182.45,182.41,4.0774111]
[1754733660024,0.66,182.44,182.42,4.0774111]
[1754733660236,0.66,182.44,182.43,4.0774111]
[1754733660808,0.66,182.47,182.43,8.94892271]
[1754733661047,0.66,182.46,182.44,8.94892271]
[1754733661367,0.66,182.46,182.45,4.0774111]
[1754733664515,11.0121649,182.46,182.45,4.0774111]
[1754733666731,6.14065329,182.46,182.45,4.0774111]
[1754733667045,11.0121649,182.46,182.45,4.0774111]
[1754733667348,6.14065329,182.46,182.45,4.0774111]
[1754733667527,11.0121649,182.46,182.45,4.0774111]
[1754733668449,11.0121649,182.46,182.45,4.08190682]
[1754733671124,6.14065329,182.46,182.45,4.08190682]
[1754733671327,11.0121649,182.46,182.39,0.72]
[1754733671531,4.87151161,182.43,182.4,4.0831932]
[1754733671743,4.87151161,182.43,182.41,4.0831932]
[1754733671953,4.87151161,182.43,182.42,4.0831932]
[1754733673423,11.03306617,182.43,182.42,4.0831932]
[1754733677266,11.03306617,182.43,182.42,4.08294664]
[1754733677646,10.35306617,182.43,182.42,4.08294664]
[1754733678971,11.03306617,182.43,182.42,4.08294664]
[1754733681352,10.35298341,182.44,182.42,4.08294664]
[1754733681561,0.03,182.46,182.43,9.67445825]
[1754733681764,0.03,182.46,182.44,4.08294664]
[1754733682070,0.03,182.46,182.45,4.08294664]
[1754733682584,5.51070668,182.46,182.45,4.08294664]
[1754733683152,0.03,182.46,182.45,4.08294664]
[1754733683480,0.03,182.46,182.45,4.79828909]
[1754733683682,0.03,182.46,182.45,4.07828909]
[1754733684464,0.03,182.46,182.45,4.79828909]
[1754733685167,0.03,182.46,182.45,9.6698007]
[1754733686058,0.03,182.46,182.45,4.79828909]
[1754733686258,0.03,182.46,182.45,9.6698007]
[1754733687083,0.03,182.46,182.45,4.79828909]
[1754733687387,0.03,182.46,182.45,35.6698007]
[1754733687884,0.03,182.46,182.45,30.79828909]
[1754733688060,0.03,182.46,182.45,30.07828909]
[1754733688270,11.0621649,182.46,182.45,1e-08]
[1754733689279,24.76379813,182.46,182.39,0.72]
[1754733689588,0.68,182.45,182.39,26.72]
[1754733689786,4.87151161,182.43,182.39,26.72]
[1754733689993,4.87151161,182.42,182.38,0.06]
[1754733690289,10.35363504,182.42,182.38,0.06]
[1754733690487,10.35363504,182.42,182.39,0.72]
[1754733690694,5.48212343,182.42,182.39,0.72]
[1754733691388,5.55151161,182.43,182.39,5.59151161]
[1754733691389,5.48158125,182.43,182.39,5.59151161]
[1754733691586,5.5107152,182.46,182.41,4.87151161]
[1754733691790,0.03,182.46,182.43,4.87151161]
[1754733691991,0.03,182.46,182.43,0.72]
[1754733692363,0.03,182.46,182.42,4.87151161]
[1754733692769,0.03,182.46,182.43,5.59151161]
[1754733693305,0.03,182.46,182.43,0.72]
[1754733693793,0.03,182.46,182.41,0.72]
[1754733693960,0.03,182.46,182.42,4.87151161]
[1754733694164,0.03,182.46,182.42,0.72]
[1754733694474,0.71,182.45,182.41,4.87151161]
[1754733694679,0.03,182.43,182.41,0.72]
[1754733694891,4.90151161,182.43,182.39,0.06]
[1754733695203,5.58151161,182.42,182.39,26.06]
[1754733695405,4.87151161,182.42,182.39,26.06]
[1754733695584,4.87151161,182.42,182.39,26.78]
[1754733697210,0.03,182.43,182.4,0.72]
[1754733697365,0.03,182.43,182.41,0.72]
[1754733697904,0.03,182.43,182.39,36.41426586]
[1754733698104,0.03,182.43,182.42,0.72]
[1754733698608,0.03,182.43,182.41,4.87151161]
[1754733698784,0.03,182.43,182.41,5.59151161]
[1754733699699,0.03,182.43,182.39,31.54275425]
[1754733699916,5.58151161,182.42,182.39,0.06]
[1754733700395,5.58151161,182.42,182.4,4.05832188]
[1754733700605,0.71,182.42,182.41,4.05832188]
[1754733700973,0.71,182.42,182.39,0.06]
[1754733701272,0.71,182.42,182.4,4.05816613]
[1754733701579,6.19191277,182.42,182.41,4.05816613]
[1754733701776,11.06342438,182.42,182.41,4.05816613]
[1754733702401,6.19191277,182.42,182.41,4.05816613]
[1754733702608,11.06342438,182.42,182.41,4.05816613]
[1754733705380,6.19191277,182.42,182.41,4.05816613]
[1754733705597,11.06342438,182.42,182.41,4.05816613]
[1754733706878,11.06342438,182.42,182.41,4.06176381]
[1754733707079,5.48191277,182.42,182.41,4.06176381]
[1754733707688,10.38306866,182.43,182.41,4.06176381]
[1754733707886,11.09306866,182.43,182.42,4.06176381]
[1754733709205,11.09306866,182.43,182.42,4.05937372]
[1754733709513,6.22155705,182.43,182.42,4.05937372]
[1754733709680,0.03,182.43,182.42,4.05937372]
[1754733709884,5.51155456,182.43,182.42,4.05937372]
[1754733710112,0.03,182.43,182.42,4.05937372]
[1754733711493,0.03,182.43,182.42,4.77937372]
[1754733712010,0.03,182.43,182.42,9.65088533]